bitfinex-derivatives/quotes_SOLF0:USTF0_20241015
["timestamp","ask_amount","ask_price","bid_price","bid_amount"]
[1729001767040,48.62,157.36,157.26,8.92]
[1729001767346,3.1778,157.37,157.33,3.1783]
[1729001767539,2.5992,157.39,157.3,39.7]
[1729001767741,1.3686,157.43,157.31,1.4254]
[1729001767944,2.7804,157.47,157.36,39.7]
[1729001768647,39.7,157.46,157.32,8.92]
[1729001768852,39.7,157.43,157.32,8.92]
[1729001769053,3.1775,157.38,157.32,8.92]
[1729001769545,39.7,157.41,157.32,8.92]
[1729001769741,39.7,157.38,157.32,3.1785]
[1729001770251,39.7,157.38,157.31,3.1788]
[1729001770446,39.7,157.4,157.28,8.92]
[1729001770840,39.7,157.38,157.33,3.1784]
[1729001771142,39.7,157.38,157.29,3.11640392]
[1729001771444,39.7,157.41,157.29,3.11640392]
[1729001771645,39.7,157.41,157.28,8.92]
[1729001771845,3.1778,157.37,157.33,3.1785]
[1729001772040,39.7,157.41,157.28,8.92]
[1729001772343,1.3686,157.42,157.26,2.7565]
[1729001772344,39.7,157.36,157.26,2.7565]
[1729001772547,39.7,157.39,157.26,2.7565]
[1729001773048,39.7,157.41,157.28,39.7]
[1729001773747,3.1779,157.36,157.33,3.1785]
[1729001773950,39.7,157.41,157.28,39.7]
[1729001774350,1.3686,157.42,157.3,39.7]
[1729001774547,1.3645,157.43,157.35,39.7]
[1729001774941,1.3645,157.43,157.38,3.1773]
[1729001775247,1.3645,157.43,157.33,42.87650022]
[1729001775555,3.1758,157.47,157.43,3.1763]
[1729001775744,2.6198,157.52,157.41,39.7]
[1729001776141,3.175,157.51,157.42,1.3373]
[1729001776547,3.1751,157.5,157.46,3.1758]
[1729001777051,2.6198,157.52,157.43,3.1764]
[1729001777254,2.6198,157.52,157.38,51.70864828]
[1729001777449,40.6997653,157.51,157.38,48.58]
[1729001777746,3.176,157.46,157.41,3.1768]
[1729001777952,39.7,157.51,157.41,3.1768]
[1729001778144,0.99988575,157.5,157.41,3.1768]
[1729001778342,3.1761,157.45,157.41,3.1768]
[1729001778550,39.7,157.51,157.4,3.1769]
[1729001778745,3.1762,157.45,157.4,3.1769]
[1729001779152,39.7,157.51,157.41,3.1767]
[1729001779354,3.1756,157.48,157.38,48.58]
[1729001779556,2.6198,157.52,157.38,48.58]
[1729001779850,0.99980419,157.51,157.41,39.7]
[1729001780047,3.1751,157.5,157.42,1.3249]
[1729001780246,2.6198,157.52,157.42,1.3249]
[1729001780449,3.1752,157.49,157.45,3.176]
[1729001780654,2.6198,157.52,157.42,1.3249]
[1729001781058,3.1755,157.48,157.44,3.176]
[1729001781251,39.7,157.51,157.39,39.7]
[1729001781554,3.176,157.46,157.42,3.1766]
[1729001782453,3.1756,157.48,157.44,3.1761]
[1729001782759,2.6198,157.52,157.4,8.88]
[1729001782954,3.1756,157.48,157.44,3.1761]
[1729001783154,2.6198,157.52,157.4,8.88]
[1729001783357,40.69981446,157.51,157.4,8.88]
[1729001783551,3.1764,157.44,157.4,12.0569]
[1729001783751,39.7,157.51,157.4,8.88]
[1729001783952,0.99986305,157.5,157.4,8.88]
[1729001784153,3.1762,157.45,157.41,3.1767]
[1729001784750,3.1767,157.42,157.38,3.1773]
[1729001784959,39.7,157.49,157.38,3.1773]
[1729001784960,39.7,157.46,157.38,3.1773]
[1729001785153,39.7,157.43,157.34,1.4062]
[1729001785354,39.7,157.43,157.36,3.1778]
[1729001785653,39.7,157.43,157.34,1.4062]
[1729001785848,3.177,157.41,157.37,3.1775]
[1729001786055,39.7,157.43,157.37,3.1775]
[1729001786260,39.7,157.38,157.25,3.2079759]
[1729001786562,39.7,157.38,157.28,1.4015]
[1729001786854,8.88,157.4,157.28,1.4015]
[1729001787057,39.7,157.38,157.28,1.4015]
[1729001787559,3.1786,157.33,157.29,3.1791]
[1729001788059,3.1783,157.34,157.28,1.4015]
[1729001788360,39.7,157.36,157.26,1.4062]
[1729001788553,3.1784,157.34,157.26,1.4062]
[1729001788755,3.1784,157.34,157.3,3.1789]
[1729001788958,39.7,157.33,157.19,39.7]
[1729001789161,3.1801,157.25,157.18,5.92960518]
[1729001789352,39.7,157.28,157.14,39.7]
[1729001789558,39.7,157.23,157.11,48.58]
[1729001789757,39.7,157.26,157.14,39.7]
[1729001789953,1.3073,157.27,157.14,39.7]
[1729001790154,3.1808,157.22,157.14,39.7]
[1729001790354,1.3073,157.27,157.11,8.88]
[1729001790355,39.7,157.23,157.13,3.1823]
[1729001790549,39.7,157.23,157.11,48.58]
[1729001790755,42.8807,157.23,157.11,48.58]
[1729001791056,1.3073,157.27,157.18,3.1814]
[1729001791252,39.7,157.25,157.11,8.88]
[1729001791458,1.3073,157.27,157.19,3.1811]
[1729001791955,1.3073,157.27,157.11,8.88]
[1729001792161,3.1808,157.22,157.17,3.1817]
[1729001792362,41.0073,157.27,157.14,39.7]
[1729001792556,8.88,157.28,157.21,3.1807]
[1729001792763,10.2372,157.32,157.19,42.8673863]
[1729001793059,10.2372,157.32,157.21,3.1807]
[1729001793060,3.18,157.26,157.21,3.1807]
[1729001793259,39.7,157.31,157.2,1.2943]
[1729001793663,39.7,157.28,157.17,8.88]
[1729001793864,39.7,157.22,157.04,56.75014276]
[1729001794064,39.7,157.19,157.07,39.7]
[1729001794663,8.88,157.2,157.07,39.7]
[1729001794863,8.88,157.2,157.09,39.7]
[1729001795071,1.3125,157.23,157.15,39.7]
[1729001795366,1.2956,157.27,157.15,39.7]
[1729001795860,1.2956,157.27,157.12,48.58]
[1729001796068,39.7,157.24,157.12,51.79326901]
[1729001796259,8.88,157.25,157.14,39.7]
[1729001796766,8.88,157.25,157.15,1.3806]
[1729001796969,8.88,157.25,157.18,3.1815]
[1729001797467,8.88,157.25,157.18,3.1813]
[1729001797468,3.1806,157.23,157.18,3.1813]
[1729001797856,48.58,157.25,157.15,1.3806]
[1729001798059,39.7,157.22,157.12,8.88]
[1729001798257,39.7,157.17,157.05,40.989]
[1729001798457,3.1825,157.13,157.09,3.1831]
[1729001798659,39.7,157.17,157.05,2.6234]
[1729001798861,39.7,157.17,157.06,39.7]
[1729001799065,3.1824,157.14,157.09,3.1833]
[1729001799265,40.9914,157.17,157.06,39.7]
[1729001799467,40.9914,157.17,157.05,2.6234]
[1729001799866,40.9914,157.17,157.07,3.1836]
[1729001800063,39.7,157.14,157.01,3.19718712]
[1729001800372,1.2914,157.17,156.97,2.6399]
[1729001800373,3.1843,157.04,156.97,2.6399]
[1729001800867,3.1844,157.04,157.0,3.1851]
[1729001801065,39.7,157.04,156.83,75.0972]
[1729001801265,39.7,156.97,156.71,2.5483751]
[1729001801467,3.1868,156.92,156.81,39.7]
[1729001801664,39.7,156.94,156.81,39.7]
[1729001801865,39.7,156.94,156.79,48.6]
[1729001802061,39.7,156.94,156.79,12.13157232]
[1729001802260,39.7,156.94,156.81,39.7]
[1729001802963,39.7,156.91,156.79,39.7]
[1729001803162,3.1877,156.88,156.81,3.1889]
[1729001803367,48.6,156.91,156.79,39.7]
[1729001803676,48.6,156.91,156.49,15.9776]
[1729001803677,42.889,156.82,156.7,3.1912]
[1729001803971,42.889,156.82,156.56,68.76]
[1729001803972,39.7,156.82,156.71,1.17210792]
[1729001804179,3.15341101,156.86,156.71,39.7]
[1729001804476,8.88,156.84,156.72,39.7]
[1729001805074,8.88,156.84,156.69,39.7]
[1729001805871,3.1882,156.86,156.78,3.1896]
[1729001806176,48.58,156.85,156.72,39.7]
[1729001806373,39.7,156.8,156.66,48.58]
[1729001806583,8.88,156.79,156.66,48.58]
[1729001807073,39.7,156.75,156.69,3.1914]
[1729001807372,3.1899,156.77,156.63,39.7]
[1729001807373,39.7,156.77,156.63,39.7]
[1729001807675,3.1904,156.74,156.67,3.1918]
[1729001807878,48.58,156.77,156.66,39.7]
[1729001808070,8.88,156.77,156.66,39.7]
[1729001808577,39.7,156.75,156.63,39.7]
[1729001808774,39.7,156.7,156.57,1.3562]
[1729001809068,48.58,156.7,156.58,1.17335435]
[1729001809278,48.58,156.7,156.51,12.11503621]
[1729001809476,48.58,156.7,156.54,39.7]
[1729001809874,3.1918,156.68,156.52,1.1736173]
[1729001810169,8.88,156.68,156.6,39.7]
[1729001810363,1.4019,156.7,156.63,39.7]
[1729001810566,1.4019,156.7,156.65,3.1922]
[1729001810766,1.4019,156.7,156.63,39.7]
[1729001811271,1.4019,156.7,156.6,39.7]
[1729001812079,1.4019,156.7,156.57,48.58]
[1729001812977,1.4019,156.7,156.6,39.7]
[1729001813370,41.1019,156.7,156.57,39.7]
[1729001813879,1.4019,156.7,156.57,39.7]
[1729001814378,3.1915,156.69,156.57,39.7]
[1729001814584,1.4019,156.7,156.6,39.7]
[1729001814795,8.9,156.72,156.63,39.7]
[1729001815077,39.7,156.7,156.58,39.7]
[1729001815272,39.7,156.7,156.56,39.7]
[1729001815479,3.1915,156.69,156.63,3.1926]
[1729001815678,39.7,156.7,156.56,39.7]
[1729001815979,3.1914,156.7,156.63,3.1925]
[1729001816278,39.7,156.7,156.57,39.7]
[1729001816772,39.7,156.7,156.51,3.22819917]
[1729001816975,39.7,156.7,156.41,6.66719885]
[1729001816976,39.7,156.67,156.54,39.7]
[1729001817180,8.9,156.66,156.54,39.7]
[1729001817375,39.7,156.7,156.56,39.7]
[1729001817578,42.8919,156.67,156.62,3.1927]
[1729001817884,39.7,156.67,156.54,8.9]
[1729001818077,42.892,156.67,156.61,3.1929]
[1729001818282,39.7,156.67,156.53,39.7]
[1729001818479,39.7,156.62,156.49,4.51892295]
[1729001818676,39.7,156.62,156.49,44.21892295]
[1729001818876,8.9,156.63,156.49,44.21892295]
[1729001819071,1.4163,156.68,156.55,39.7]
[1729001819277,8.9,156.65,156.55,39.7]
[1729001819578,8.9,156.65,156.53,8.9]
[1729001819777,3.1925,156.64,156.53,8.9]
[1729001819977,48.6,156.65,156.53,8.9]
[1729001820175,39.7,156.62,156.49,3.17162295]
[1729001820480,39.7,156.56,156.44,8.9]
[1729001820878,39.7,156.56,156.47,3.14595004]
[1729001821074,8.9,156.58,156.46,41.0562]
[1729001821279,48.6,156.64,156.51,39.7]
[1729001821581,48.6,156.64,156.46,4.49128872]
[1729001821582,49.8878,156.67,156.53,39.7]
[1729001821782,49.8878,156.67,156.63,3.1926]
[1729001821980,1.4163,156.68,156.56,42.81708694]
[1729001822184,6.3782,156.81,156.55,8.9]
[1729001822185,39.7,156.72,156.61,39.7]
[1729001822375,8.9,156.74,156.61,39.7]
[1729001822376,3.1906,156.74,156.69,3.1913]
[1729001822687,3.1906,156.74,156.61,48.6]
[1729001822688,39.7,156.72,156.61,8.9]
[1729001823077,39.7,156.7,156.61,8.9]
[1729001823278,39.7,156.67,156.57,1.3206]
[1729001823482,39.7,156.64,156.62,3.1928]
[1729001823673,39.7,156.64,156.51,39.7]
[1729001823880,39.7,156.61,156.46,42.83508872]
[1729001824185,39.7,156.56,156.45,8.9]
[1729001824381,39.7,156.56,156.53,3.1946]
[1729001824578,39.7,156.56,156.45,8.9]
[1729001824883,8.9,156.57,156.45,8.9]
[1729001825084,8.9,156.57,156.44,3.13753104]
[1729001825385,39.7,156.5,156.47,3.1958]
[1729001825586,39.7,156.5,156.39,8.9]
[1729001825882,39.7,156.48,156.45,3.1963]
[1729001826083,39.7,156.48,156.39,8.9]
[1729001826390,39.7,156.5,156.39,8.9]
[1729001826588,39.7,156.47,156.28,72.15139159]
[1729001826789,39.7,156.44,156.31,39.7]
[1729001826982,42.8967,156.44,156.39,3.1976]
[1729001827283,39.7,156.42,156.31,39.7]
[1729001827481,39.7,156.42,156.36,3.1981]
[1729001827482,39.7,156.4,156.36,3.1981]
[1729001827681,39.7,156.44,156.25,8.9]
[1729001827682,39.7,156.44,156.3,39.7]
[1729001827877,39.7,156.41,156.28,39.7]
[1729001828186,39.7,156.41,156.25,3.22798478]
[1729001828392,39.7,156.35,156.25,8.9]
[1729001828581,8.9,156.38,156.22,4.67068461]
[1729001828884,39.7,156.43,156.3,39.7]
[1729001829091,39.7,156.43,156.3,48.6]
[1729001829385,39.7,156.38,156.25,39.7]
[1729001829586,39.7,156.38,156.33,3.1986]
[1729001829984,39.7,156.36,156.22,1.4186]
[1729001830187,39.7,156.33,156.22,1.4186]
[1729001831090,39.7,156.33,156.06,2.57562657]
[1729001831091,39.7,156.26,156.06,2.57562657]
[1729001831294,39.7,156.3,156.14,39.7]
[1729001831491,39.7,156.3,156.17,39.7]
[1729001831686,39.7,156.33,156.27,3.2]
[1729001831887,39.7,156.35,156.23,9.34]
[1729001832086,39.7,156.35,156.24,9.34]
[1729001832286,10.7219,156.36,156.18,9.34]
[1729001832287,39.7,156.28,156.18,9.34]
[1729001832783,39.7,156.3,156.18,9.34]
[1729001832985,39.7,156.32,156.2,39.7]
[1729001833177,3.2,156.28,156.15,3.2023]
[1729001833381,3.2,156.28,156.08,9.34]
[1729001833382,39.7,156.29,156.14,42.91957017]
[1729001833583,39.7,156.26,156.16,1.17637723]
[1729001833783,39.7,156.29,156.14,39.7]
[1729001833978,39.7,156.29,156.15,40.87652825]
[1729001834279,39.7,156.29,156.15,39.7]
[1729001834886,39.7,156.29,156.19,3.2015]
[1729001835187,39.7,156.26,156.14,12.56382747]
[1729001835486,39.7,156.28,156.02,6.4101]
[1729001835690,39.7,156.28,156.12,39.7]
[1729001835995,39.7,156.28,156.12,49.44]
[1729001836189,39.7,156.28,156.15,39.7]
[1729001836889,39.7,156.3,156.18,39.7]
[1729001837082,3.1992,156.31,156.23,3.2007]
[1729001837287,39.7,156.3,156.18,9.74]
[1729001837492,39.7,156.27,156.13,39.7]
[1729001837793,39.7,156.27,156.13,49.44]
[1729001837989,39.7,156.25,156.1,40.9996]
[1729001838190,39.7,156.22,156.1,39.7]
[1729001838793,3.2015,156.2,156.1,39.7]
[1729001838994,49.46,156.22,156.1,39.7]
[1729001839189,3.202,156.18,156.12,3.203]
[1729001839394,39.7,156.21,156.08,39.7]
[1729001839594,9.76,156.22,156.1,39.7]
[1729001839896,9.76,156.22,156.06,39.7]
[1729001839897,2.6568,156.26,156.16,39.7]
[1729001840093,39.7,156.32,156.18,39.7]
[1729001840299,39.7,156.34,156.21,39.7]
[1729001840492,39.7,156.32,156.21,39.7]
[1729001840993,39.7,156.29,156.16,42.3639]
[1729001841194,39.7,156.32,156.16,45.53203596]
[1729001841395,3.1997,156.29,156.23,3.2007]
[1729001841596,9.76,156.33,156.2,39.7]
[1729001842095,39.7,156.32,156.17,9.76]
[1729001842291,39.7,156.32,156.21,39.7]
[1729001842492,1.3819,156.36,156.17,9.76]
[1729001842493,4.5802,156.36,156.31,3.1992]
[1729001842694,39.7,156.41,156.29,39.7]
[1729001843492,39.7,156.44,156.29,39.7]
[1729001843692,39.7,156.44,156.38,3.1977]
[1729001843888,2.7266,156.45,156.34,9.76]
[1729001844195,41.0849,156.49,156.34,49.46]
[1729001844694,1.3849,156.49,156.37,39.7]
[1729001844891,1.3849,156.49,156.4,39.7]
[1729001845089,1.2983,156.53,156.42,39.7]
[1729001845290,1.3591,156.56,156.45,39.7]
[1729001845490,1.3591,156.56,156.46,10.2]
[1729001845997,39.7,156.52,156.42,10.2]
[1729001846391,39.7,156.49,156.41,10.2]
[1729001846595,39.7,156.49,156.34,39.7]
[1729001846788,3.1962,156.46,156.4,3.1972]
[1729001846989,39.7,156.49,156.37,39.7]
[1729001847195,39.7,156.52,156.4,39.7]
[1729001847389,39.7,156.55,156.43,39.7]
[1729001847601,11.5591,156.56,156.41,10.2]
[1729001847799,39.7,156.55,156.41,10.2]
[1729001847995,39.7,156.5,156.41,10.2]
[1729001848388,39.7,156.52,156.45,3.1962]
[1729001848592,39.7,156.52,156.41,10.2]
[1729001848798,39.7,156.55,156.41,10.2]
[1729001848999,39.7,156.58,156.45,39.7]
[1729001849192,39.7,156.53,156.4,39.7]
[1729001849390,39.7,156.53,156.41,10.2]
[1729001850389,39.7,156.5,156.41,10.2]
[1729001850596,42.8955,156.5,156.44,3.1965]
[1729001850898,39.7,156.5,156.41,10.2]
[1729001851097,3.1956,156.49,156.42,3.1968]
[1729001851294,39.7,156.5,156.41,10.2]
[1729001851493,39.7,156.56,156.43,39.7]
[1729001851689,39.7,156.53,156.41,10.2]
[1729001852201,39.7,156.5,156.41,10.2]
[1729001852794,39.7,156.47,156.35,42.97578162]
[1729001853101,39.7,156.42,156.35,10.2]
[1729001853295,39.7,156.42,156.31,10.2]
[1729001853698,42.8971,156.42,156.34,3.1985]
[1729001853893,39.7,156.42,156.31,10.2]
[1729001854300,4.5733,156.44,156.32,39.7]
[1729001854503,1.3766,156.44,156.34,39.7]
[1729001854691,39.7,156.47,156.34,42.94920524]
[1729001854896,42.4378,156.52,156.37,39.7]
[1729001855094,42.4378,156.52,156.38,10.2]
[1729001855404,39.7,156.49,156.38,10.2]
[1729001856202,1.3766,156.52,156.39,49.9]
[1729001856501,39.7,156.57,156.42,39.7]
[1729001857303,39.7,156.49,156.41,10.2]
[1729001857604,39.7,156.52,156.41,10.2]
[1729001857998,3.1947,156.54,156.42,39.7]
[1729001858205,39.7,156.57,156.45,39.7]
[1729001858399,39.7,156.57,156.42,39.7]
[1729001858899,39.7,156.55,156.43,10.2]
[1729001859606,3.1949,156.53,156.48,3.1956]
[1729001859905,42.8952,156.51,156.46,3.1961]
[1729001860104,39.7,156.56,156.43,39.7]
[1729001860301,39.7,156.56,156.44,13.42520939]
[1729001860499,39.7,156.56,156.44,10.18]
[1729001860902,39.7,156.59,156.46,39.7]
[1729001861102,39.7,156.64,156.51,39.7]
[1729001861297,39.7,156.64,156.51,49.88]
[1729001861505,1.4182,156.66,156.53,39.7]
[1729001861803,11.5269,156.69,156.56,39.7]
[1729001861804,39.7,156.69,156.56,39.7]
[1729001862101,39.7,156.67,156.54,39.7]
[1729001862404,39.7,156.72,156.58,39.7]
[1729001862606,3.1914,156.7,156.64,3.1923]
[1729001862908,39.7,156.67,156.59,10.18]
[1729001863102,3.1929,156.63,156.57,3.1939]
[1729001863303,39.7,156.64,156.54,79.2]
[1729001863703,39.7,156.64,156.57,3.1938]
[1729001864300,3.193,156.62,156.57,3.1938]
[1729001864497,49.88,156.7,156.57,39.7]
[1729001864703,39.7,156.7,156.57,39.7]
[1729001864910,3.1925,156.64,156.54,118.9]
[1729001865297,39.7,156.68,156.54,118.9]
[1729001866509,3.1921,156.67,156.58,3.1936]
[1729001866705,39.7,156.68,156.54,118.9]
[1729001866908,39.7,156.7,156.57,39.7]
[1729001867204,3.1914,156.69,156.57,39.7]
[1729001867403,39.7,156.7,156.57,39.7]
[1729001867606,3.1921,156.66,156.6,3.1931]
[1729001867801,3.1921,156.66,156.57,39.7]
[1729001867998,39.7,156.7,156.57,39.7]
[1729001868204,39.7,156.73,156.65,3.1922]
[1729001868405,4.066,156.74,156.62,39.7]
[1729001868603,4.066,156.74,156.63,3.24807338]
[1729001868808,39.7,156.73,156.62,10.18]
[1729001869000,4.066,156.74,156.62,53.01756862]
[1729001869608,7.2565,156.74,156.69,3.1913]
[1729001869913,39.7,156.78,156.65,39.7]
[1729001870215,3.1904,156.75,156.65,39.7]
[1729001870707,2.6971,156.8,156.68,39.7]
[1729001870906,2.6971,156.8,156.7,39.7]
[1729001871407,42.3971,156.8,156.68,10.18]
[1729001871900,42.3971,156.8,156.72,3.1907]
[1729001872306,3.19,156.77,156.72,3.1907]
[1729001872609,42.3971,156.8,156.68,10.18]
[1729001872810,3.1904,156.75,156.65,108.7]
[1729001873003,39.7,156.77,156.7,3.1911]
[1729001873203,42.3971,156.8,156.67,39.7]
[1729001873614,42.3971,156.8,156.72,3.1906]
[1729001873803,3.19,156.77,156.67,39.7]
[1729001874004,2.6971,156.8,156.69,39.7]
[1729001874511,3.1898,156.78,156.69,39.7]
[1729001874709,2.6971,156.8,156.75,3.1902]
[1729001875212,2.6971,156.8,156.74,3.1904]
[1729001875213,3.1896,156.79,156.74,3.1904]
[1729001875414,39.7,156.85,156.72,49.64]
[1729001875712,39.7,156.85,156.73,9.94]
[1729001876008,3.189,156.81,156.76,3.1899]
[1729001876311,49.64,156.88,156.75,39.7]
[1729001876508,3.1878,156.87,156.77,39.7]
[1729001876810,39.7,156.93,156.8,39.7]
[1729001877003,3.1869,156.92,156.87,3.1876]
[1729001877209,39.7,156.95,156.82,39.7]
[1729001877404,2.7752,156.96,156.86,39.7]
[1729001877612,2.7752,156.96,156.87,9.94]
[1729001877913,2.7752,156.96,156.88,39.7]
[1729001878102,2.7752,156.96,156.87,9.94]
[1729001878708,9.94,156.99,156.88,39.7]
[1729001878913,1.2877,157.0,156.88,39.7]
[1729001879416,1.2877,157.0,156.91,39.7]
[1729001879601,3.185,157.01,156.96,3.1859]
[1729001879804,2.6846,157.02,156.93,9.94]
[1729001880106,3.1845,157.04,156.98,3.1855]
[1729001880412,39.7,157.0,156.88,68.94]
[1729001880613,39.7,157.01,156.86,9.94]
[1729001880614,39.7,156.97,156.86,9.94]
[1729001880806,1.2997,156.99,156.86,9.94]
[1729001881001,39.7,157.05,156.9,39.7]
[1729001881208,1.2997,157.07,156.98,39.7]
[1729001881408,1.3849,157.09,157.0,39.7]
[1729001881617,39.7,157.15,157.0,42.89088661]
[1729001881812,41.041,157.15,157.05,3.1841]
[1729001882011,39.7,157.12,157.01,39.7]
[1729001882311,3.1841,157.06,157.01,3.1849]
[1729001882509,39.7,157.07,156.96,9.94]
[1729001882712,9.94,157.1,156.96,49.64]
[1729001882713,39.7,157.09,156.96,49.64]
[1729001883010,1.341,157.15,157.01,39.7]
[1729001883208,39.7,157.13,157.01,49.64]
[1729001883409,1.341,157.15,157.04,39.7]
[1729001884011,39.7,157.07,156.93,39.7]
[1729001884212,39.7,157.04,156.91,52.3287]
[1729001884410,3.1853,157.0,156.91,52.3287]
[1729001884614,39.7,157.04,156.91,52.3287]
[1729001884810,39.7,157.01,156.91,11.2589]
[1729001885007,78.8,157.14,156.98,39.7]
[1729001885211,39.7,157.12,156.98,39.7]
[1729001885413,3.1838,157.07,156.99,3.1853]
[1729001885711,39.7,157.12,156.98,39.7]
[1729001886021,39.7,157.12,157.01,39.7]
[1729001886212,39.7,157.1,156.97,9.94]
[1729001886513,39.7,157.1,156.99,3.1853]
[1729001886719,39.7,157.1,156.97,9.94]
[1729001886906,39.7,157.1,156.98,39.7]
[1729001887111,39.7,157.07,156.97,9.94]
[1729001887511,41.0621,157.13,157.0,39.7]
[1729001887719,41.0621,157.13,157.0,42.92323482]
[1729001888220,1.3621,157.13,157.02,39.7]
[1729001888920,1.3621,157.13,157.05,39.7]
[1729001889114,1.4231,157.16,157.05,39.7]
[1729001889513,3.1825,157.14,157.1,3.183]
[1729001889713,1.3095,157.2,157.08,39.7]
[1729001889916,1.3095,157.2,157.11,39.7]
[1729001890119,39.7,157.17,157.05,39.7]
[1729001890420,39.7,157.12,157.0,39.7]
[1729001890719,1.3725,157.11,157.0,39.7]
[1729001891021,41.0095,157.2,157.05,39.7]
[1729001891225,3.1829,157.11,157.05,46.04696847]
[1729001891522,39.7,157.18,157.04,9.92]
[1729001891725,3.1824,157.14,157.09,3.1832]
[1729001891916,39.7,157.18,157.05,39.7]
[1729001892416,3.1822,157.15,157.09,3.1831]
[1729001892617,3.1822,157.15,157.08,39.7]
[1729001892827,1.3725,157.19,157.1,39.7]
[1729001893018,1.3725,157.19,157.04,11.3158]
[1729001893019,4.5538,157.19,157.13,42.8823]
[1729001893217,68.8,157.31,157.13,39.7]
[1729001893412,39.7,157.18,157.07,39.7]
[1729001893716,41.0884,157.23,157.07,39.7]
[1729001893913,41.0884,157.23,157.09,39.7]
[1729001894312,39.7,157.2,157.07,39.7]
[1729001894522,9.92,157.22,157.09,39.7]
[1729001895028,3.1821,157.16,157.11,3.1827]
[1729001895324,49.62,157.22,157.09,39.7]
[1729001895523,49.62,157.22,157.04,1.3958]
[1729001895524,39.7,157.17,157.04,41.0958]
[1729001895719,1.2888,157.16,157.04,41.0958]
[1729001895921,3.184,157.06,157.03,9.92]
[1729001896218,39.7,157.14,156.99,39.7]
[1729001896420,39.7,157.11,156.99,39.7]
[1729001896625,3.1845,157.04,156.99,39.7]
[1729001896823,39.7,157.09,156.98,9.92]
[1729001897221,39.7,157.09,156.94,56.77946418]
[1729001897222,39.7,157.06,156.94,39.7]
[1729001897533,3.1855,156.99,156.94,42.8863]
[1729001897725,39.7,157.08,156.96,39.7]
[1729001897926,39.7,157.05,156.94,39.7]
[1729001898228,39.7,157.05,156.91,39.7]
[1729001898423,39.7,157.03,156.91,39.7]
[1729001898623,3.186,156.96,156.91,42.8868]
[1729001898827,1.4262,157.02,156.91,39.7]
[1729001899133,4.6111,157.02,156.97,3.1856]
[1729001899429,4.6111,157.02,156.89,39.7]
[1729001899430,1.4262,157.02,156.89,39.7]